fUSD/lending_fUSD_20240221
["ID","MTS","AMOUNT","RATE_DAILY","PERIOD"]
[314633337,1708479032331,-381.93429077,0.00040969,2]
[314633338,1708479032340,-5739.02908518,0.00040969,2]
[314633339,1708479032349,-1046.04350884,0.00040969,2]
[314633340,1708479032358,-1727.001711,0.00040969,30]
[314633341,1708479032367,-1842.717286,0.00040969,30]
[314633342,1708479032376,-6028.15611834,0.00040969,2]
[314633343,1708479032385,-1326.6794,0.00040969,7]
[314633344,1708479032394,-555.0,0.00041969,2]
[314633345,1708479032403,-151.022124,0.00042048,34]
[314633346,1708479032413,-153.02801044,0.00042048,14]
[314633347,1708479032422,-161.0,0.00042096,7]
[314633348,1708479032431,-655.70883,0.000421,12]
[314633349,1708479032440,-1250.0,0.00042191,7]
[314633350,1708479032449,-2828.99,0.000422,7]
[314633351,1708479032459,-189.24,0.00042242,2]
[314633352,1708479032467,-151.022124,0.00042248,34]
[314633353,1708479032477,-4240.89678384,0.00042289,16]
[314633354,1708479032486,-151.34,0.00042319,2]
[314633355,1708479032495,-158.06,0.0004235,2]
[314633356,1708479032504,-199.28,0.00042421,2]
[314633357,1708479032513,-167.022123,0.00042448,35]
[314633358,1708479032522,-19879.0,0.00042506,2]
[314633359,1708479032532,-4104.0,0.00042506,2]
[314633360,1708479032541,-454.0,0.00042506,2]
[314633361,1708479032551,-153.02801044,0.00042576,16]
[314633362,1708479032560,-161.0,0.00042644,7]
[314633363,1708479032570,-161.022123,0.00042648,35]
[314633364,1708479032580,-10000.0,0.000427,2]
[314633365,1708479032590,-5000.0,0.00042736,4]
[314633366,1708479032599,-755.16694208,0.00042739,7]
[314633367,1708479032608,-186.187073,0.0004274,14]
[314633368,1708479032617,-156.49,0.00042745,2]
[314633369,1708479032626,-180.0,0.00042746,2]
[314633370,1708479032636,-1637.90559592,0.000428,2]
[314633371,1708479032646,-204.0,0.00042825,10]
[314633372,1708479032656,-157.022123,0.00042848,36]
[314633373,1708479032666,-4240.89678384,0.00042887,17]
[314633374,1708479032675,-63079.6864203,0.0004289,9]
[314633375,1708479032684,-18654.75636513,0.0004289,2]
[314633376,1708479032693,-730.63237569,0.00042897,10]
[314633377,1708479032703,-200.0,0.000429,17]
[314633378,1708479032712,-2828.99,0.000429,7]
[314633379,1708479032722,-8238.81616142,0.00042907,5]
[314633380,1708479032732,-356.07,0.00042944,2]
[314633381,1708479032743,-200.0,0.00042987,22]
[314633382,1708479032752,-200.0,0.00042987,14]
[314633383,1708479032762,-63079.6864203,0.0004299,10]
[314633384,1708479032772,-6386.52368375,0.00042997,2]
[314633385,1708479032782,-49002.76296909,0.00043,10]
[314633386,1708479032791,-1000.0,0.00043,10]
[314633387,1708479032801,-2364.1753929,0.00043,120]
[314633388,1708479032811,-1830.0,0.00043,4]
[314633389,1708479032821,-560.03260159,0.00043,30]
[314633390,1708479032830,-500.0,0.00043,14]
[314633391,1708479032840,-1200.0,0.00043,3]
[314633392,1708479032850,-167.022123,0.00043048,34]
[314633393,1708479032859,-2083.43658469,0.00043058,5]
[314633394,1708479032868,-153.02801044,0.00043103,18]
[314633395,1708479032877,-2865.74,0.0004311,2]
[314633396,1708479032886,-1694.483133,0.00043111,60]
[314633397,1708479032895,-2445.85776168,0.00043146,2]
[314633398,1708479032904,-1261.35047246,0.00043146,2]
[314633399,1708479032913,-906.43976118,0.00043146,2]
[314633400,1708479032922,-20310.08259201,0.00043146,2]
[314633401,1708479032931,-517.57090316,0.00043146,36]
[314633402,1708479032942,-440.09787204,0.00043146,2]
[314633403,1708479032951,-167.022123,0.00043148,35]
[314633404,1708479032961,-10000.0,0.00043158,3]
[314633405,1708479032970,-312.32,0.00043175,2]
[314633406,1708479032979,-161.0,0.00043192,7]
[314633407,1708479032989,-218.86,0.00043216,3]
[314633408,1708479032999,-150.5,0.00043226,3]
[314633409,1708479033009,-25060.48346776,0.00043236,10]
[314633410,1708479033023,-1284.35585131,0.00043236,10]
[314633411,1708479033034,-450.0,0.00043236,10]
[314633412,1708479033046,-1677.20607098,0.00043236,10]
[314633413,1708479033057,-266.95294903,0.00043236,10]
[314633414,1708479033723,2496.20037056,0.00041824,4]
[314633415,1708479035902,154.23304825,0.00040959,2]
[314633416,1708479036130,154.23304825,0.00040959,2]
[314633417,1708479036267,154.23304825,0.00040959,2]
[314633418,1708479036448,154.23304825,0.00040959,2]
[314633419,1708479036598,154.23304825,0.00040959,2]
[314633420,1708479036741,154.23304825,0.00040959,2]
[314633421,1708479036878,154.23304825,0.00040959,2]
[314633422,1708479037020,154.23304825,0.00040959,2]
[314633630,1708479040053,730.858965,0.0003452,2]
[314633657,1708479040284,-160.2672376,0.00042419,2]
[314633659,1708479040294,-292.3627624,0.00042506,2]
[314633662,1708479040311,-550.6372376,0.00042506,2]
[314633664,1708479040320,-954.0,0.00042506,2]
[314633666,1708479040329,-369.5358568,0.00042778,4]
[314633681,1708479040456,1096.288448,0.00034794,2]
[314633709,1708479040702,1461.71793,0.00034931,2]
[314633742,1708479041001,1827.147413,0.00035068,2]
[314633771,1708479041394,2558.006379,0.00035342,2]
[314633834,1708479042598,827.535045,0.0003452,2]
[314633858,1708479042783,-2126.66451376,0.00042778,4]
[314633860,1708479042793,-32.39610653,0.00043171,2]
[314633876,1708479042937,1241.302568,0.00034794,2]
[314633893,1708479043105,-681.42089347,0.00043171,2]
[314633896,1708479043115,-536.459,0.00043171,2]
[314633898,1708479043125,-181.928,0.00043171,2]
[314633900,1708479043134,-1039.0,0.00043171,2]
[314633901,1708479043143,-223.055,0.00043171,2]
[314633903,1708479043153,-2548.34210656,0.00043236,10]
[314633917,1708479043266,1655.070091,0.00034931,2]
[314633921,1708479043607,2068.837613,0.00035068,2]
[314633922,1708479044032,2896.372659,0.00035342,2]
[314633924,1708479045815,-1952.0,0.00043171,2]
[314633925,1708479045824,-2554.22280196,0.00043236,10]
[314633926,1708479045836,-267.22567297,0.00043236,10]
[314633953,1708479046441,-323.69466066,0.00043236,10]
[314633954,1708479046453,-790.12443875,0.00043236,10]
[314633955,1708479068262,260.6179,0.00042,59]
[314633956,1708479076698,156.75,0.00041096,2]
[314633957,1708479077298,2117.0,0.0004,2]
[314633958,1708479086436,34408.556,0.00040871,2]
[314633959,1708479091314,632.022121,0.00042,29]
[314633960,1708479093627,519.0,0.00041,30]
[314633961,1708479099491,46714.35207417,0.00041426,18]
[314633962,1708479108104,938.84,0.00038472,2]
[314633963,1708479108671,2500.0,0.00040871,2]
[314633964,1708479120560,393.079146,0.0003452,2]
[314633965,1708479120868,589.61872,0.00034794,2]
[314633966,1708479121329,786.158293,0.00034931,2]
[314633967,1708479121781,982.697866,0.00035068,2]
[314633968,1708479122581,1375.777013,0.00035342,2]
[314633969,1708479144969,306.086568,0.0003452,2]
[314633970,1708479145179,459.129852,0.00034794,2]
[314633971,1708479145430,612.173136,0.00034931,2]
[314633972,1708479145699,765.21642,0.00035068,2]
[314633973,1708479146023,1071.302989,0.00035342,2]
[314633974,1708479149926,364.35,0.00038472,2]
[314633975,1708479150164,364.35,0.00040116,2]
[314633976,1708479150366,364.35,0.0004176,2]
[314633977,1708479152149,199.21,0.00041,2]
[314633978,1708479158317,165.05655714,0.00042,2]
[314633979,1708479199700,200.0,0.00041255,5]
[314633980,1708479203912,800.0,0.00041255,10]
[314633981,1708479205614,347.0,0.00041,30]
[314633982,1708479215338,200.0,0.00041255,20]
[314633983,1708479220764,500.0,0.00041255,20]
[314633984,1708479223535,200.0,0.00041255,20]
[314633985,1708479229502,275.977736,0.000407,2]
[314633986,1708479248562,2000.0,0.0004,2]
[314633987,1708479277218,169.32,0.00041,2]
[314633988,1708479277475,50000.0,0.000398,8]
[314633989,1708479296528,31603.86186317,0.000398,8]
[314633991,1708479317712,14455.75,0.00038472,2]
[314633993,1708479319416,2197.31300673,0.00042,2]
[314633994,1708479321587,174.8,0.00033764,2]
[314633995,1708479388417,1213.48860787,0.0004,30]
[314633996,1708479399133,475.83,0.00039178,2]
[314633997,1708479401961,150.0,0.000411,2]
[314633998,1708479427465,299.68206874,0.00041,7]
[314633999,1708479427583,423.84,0.00040025,2]
[314634000,1708479429990,6575.02083673,0.00041426,13]
[314634001,1708479459139,2577.37,0.00041859,2]
[314634002,1708479475819,-4000.0,0.00042,2]
[314634003,1708479475844,-181.74,0.00042068,2]
[314634004,1708479475866,-156.24,0.00042126,2]
[314634005,1708479475890,-399.88,0.00042131,2]
[314634006,1708479475913,-732.03,0.0004218,15]
[314634007,1708479475934,-250.0,0.0004218,2]
[314634008,1708479475955,-255.67,0.0004227,2]
[314634009,1708479475976,-5376.11,0.00042287,2]
[314634010,1708479475998,-423.84,0.00042289,2]
[314634011,1708479476019,-193.16,0.00042337,10]
[314634012,1708479476039,-150.99,0.00042337,30]
[314634013,1708479476061,-160.2672376,0.00042419,2]
[314634014,1708479479854,254.99,0.00042239,2]
[314634015,1708479483546,350.45,0.00042226,2]
[314634016,1708479483940,350.45,0.0004247,2]
[314634017,1708479508727,166.34,0.00040396,2]
[314634018,1708479512579,500.0,0.00042143,2]
[314634019,1708479520394,156.91,0.00041096,2]
[314634020,1708479521830,347.0,0.00042,30]
[314634021,1708479524447,29014.34697736,0.0004187,11]
[314634022,1708479526274,150.0,0.000411,2]
[314634023,1708479540320,29965.00729806,0.00042184,3]
[314634024,1708479541796,5000.0,0.0004,30]
[314634025,1708479561691,2000.0,0.00042141,120]
[314634026,1708479565750,-169.29,0.0004253,2]
[314634027,1708479565774,-169.61,0.00042552,2]
[314634028,1708479565797,-2000.0,0.000427,2]
[314634029,1708479565822,-350.45,0.00042714,2]
[314634030,1708479565847,-448.67598,0.0004274,15]
[314634031,1708479565870,-594.0,0.0004288,30]
[314634032,1708479565893,-499.99,0.00042958,2]
[314634033,1708479565915,-350.45,0.00042958,2]
[314634034,1708479565936,-175.0,0.00043,90]
[314634035,1708479576921,317.09,0.0004221,2]
[314634036,1708479650339,150.0,0.000411,2]
[314634037,1708479654465,5080.0,0.00041,2]
[314634038,1708479692183,442.593774,0.0003452,2]
[314634039,1708479692558,663.890661,0.00034794,2]
[314634040,1708479692745,885.187549,0.00034931,2]
[314634041,1708479692991,1106.484436,0.00035068,2]
[314634042,1708479693270,1549.07821,0.00035342,2]
[314634043,1708479694132,208.0,0.00042542,10]
[314634044,1708479700627,1257.059768,0.0003452,2]
[314634045,1708479700674,1885.589652,0.00034794,2]
[314634046,1708479700761,2514.119537,0.00034931,2]
[314634047,1708479700819,3142.649421,0.00035068,2]
[314634048,1708479700977,4399.70919,0.00035342,2]
[314634049,1708479702188,720.72462905,0.00041,4]
[314634050,1708479708222,9261.46515,0.0003452,2]
[314634051,1708479709091,13892.197726,0.00034794,2]
[314634052,1708479709366,18522.930301,0.00034931,2]
[314634053,1708479709640,23153.662877,0.00035068,2]
[314634054,1708479710244,32415.128027,0.00035342,2]
[314634055,1708479715920,154.35,0.00042319,2]
[314634056,1708479718142,777.84236809,0.00041,4]
[314634057,1708479753274,1237.087222,0.0004282,2]
[314634058,1708479759680,13078.51681401,0.00041426,18]
[314634059,1708479766718,174.71,0.00033783,2]
[314634060,1708479773967,150.0,0.000412,2]
[314634061,1708479776631,252.21,0.00042219,2]
[314634062,1708479794848,202.50398838,0.00042177,2]
[314634063,1708479798344,800.0,0.00042722,10]
[314634064,1708479810424,200.0,0.00042722,20]
[314634065,1708479814340,157.022123,0.00043,34]
[314634066,1708479822477,2179.67419561,0.00042939,17]
[314634067,1708479822573,347.0,0.000426,30]
[314634068,1708479827180,6519.37148551,0.00042939,2]
[314634069,1708479828055,1997.0,0.000381,3]
[314634070,1708479828398,1897.0,0.000381,3]
[314634071,1708479835985,157.022123,0.00043,36]
[314634072,1708479842481,680.09,0.00038472,2]
[314634073,1708479874165,151.022121,0.00043,35]
[314634074,1708479888242,859.90702839,0.00040969,4]
[314634075,1708479891409,5140.87680765,0.00042936,5]
[314634076,1708479898221,150.0,0.000412,2]
[314634077,1708479904964,250.0,0.00038472,2]
[314634078,1708479913737,151.022178,0.00043,34]
[314634079,1708479923766,157.022123,0.00043,33]
[314634080,1708479938931,955.60569011,0.00042938,11]
[314634081,1708479948167,9618.0,0.00043,2]
[314634082,1708479949844,218.23355541,0.00040969,4]
[314634083,1708479951222,167.022123,0.00043,41]
[314634084,1708479953411,210.27,0.00042233,2]
[314634085,1708479953651,210.27,0.00042477,2]
[314634086,1708479953885,210.27,0.00042721,2]
[314634087,1708479954109,210.27,0.00042965,2]
[314634088,1708479954340,218.23355541,0.00040969,4]
[314634089,1708479957185,169.61,0.0004255,2]
[314634090,1708479959562,167.022123,0.00043,40]
[314634091,1708479960737,716.58919033,0.00040969,4]
[314634092,1708479962032,373.89665,0.0004274,15]
[314634093,1708479968755,200.0,0.00042987,32]
[314634094,1708479983187,426.27,0.0004034,2]
[314634095,1708479983469,426.27,0.00042604,2]
[314634096,1708479984359,157.022121,0.00043,41]
[314634097,1708479988636,671.02,0.00042271,15]
[314634098,1708479997094,167.022121,0.00043,40]
[314634099,1708480000944,200.0,0.00040987,30]
[314634100,1708480005539,2000.0,0.00038472,2]
[314634101,1708480010147,157.022123,0.00043,35]
[314634102,1708480010863,1000.0,0.00042936,2]
[314634103,1708480015561,200.0,0.00040987,31]
[314634104,1708480020914,157.022121,0.00043,35]
[314634105,1708480021590,209.53,0.000417,2]
[314634106,1708480023702,203.99,0.00042227,2]
[314634107,1708480029527,134723.2853,0.0004087,2]
[314634108,1708480032551,200.0,0.00041987,32]
[314634109,1708480034984,150.0,0.00043,2]
[314634110,1708480039311,716.58919033,0.00040969,4]
[314634111,1708480040133,-2297.90639041,0.00043,2]
[314634112,1708480047440,150.0,0.00043,2]
[314634113,1708480050079,200.0,0.00041987,33]
[314634114,1708480050662,1844.67602155,0.00042935,5]
[314634115,1708480053418,782.36,0.00042236,2]
[314634116,1708480060310,150.0,0.00043,2]
[314634122,1708480072689,150.0,0.00043,2]
[314634123,1708480076996,151.37,0.00042288,2]
[314634124,1708480083280,20000.0,0.00041,4]
[314634125,1708480086652,150.0,0.00043,2]
[314634126,1708480099496,250.00740183,0.00043,2]
[314634127,1708480101164,200.0,0.00042987,35]
[314634128,1708480120234,573.27135226,0.00040969,4]
[314634129,1708480124400,750.0,0.00025,3]
[314634130,1708480125478,800.0,0.00027,3]
[314634131,1708480125990,347.0,0.00043,30]
[314634132,1708480126552,850.0,0.00029,3]
[314634133,1708480127657,900.0,0.00031,3]
[314634134,1708480128763,950.0,0.00033,3]
[314634135,1708480129844,1000.0,0.00035,3]
[314634136,1708480130922,1050.0,0.00037,3]
[314634137,1708480132005,1100.0,0.00039,3]
[314634138,1708480138667,6296.15,0.00043,2]
[314634139,1708480143702,23722.2629323,0.00043,2]
[314634140,1708480146067,3000.0,0.0004097,2]
[314634141,1708480149205,836.15497889,0.00042926,11]
[314634142,1708480153527,200.0,0.00042987,39]
[314634146,1708480167892,176.95511877,0.000428,2]
[314634147,1708480172670,6193.40291132,0.00042926,2]
[314634148,1708480189896,6599.99,0.00043,2]
[314634151,1708480203441,573.27135226,0.00041003,4]
[314634152,1708480219490,371.13513175,0.00042926,30]
[314634157,1708480232052,-474.2277531,0.00041004,2]
[314634158,1708480232076,-14160.48614844,0.00041004,30]
[314634159,1708480232137,-831.66345468,0.00041004,30]
[314634160,1708480232155,-502.50678473,0.00041004,30]
[314634161,1708480232174,-1073.34824939,0.00041004,30]
[314634162,1708480232194,-1532.68583263,0.00041004,30]
[314634163,1708480232220,-4135.68681312,0.00041004,30]
[314634164,1708480232264,-56139.41222877,0.00041004,30]
[314634165,1708480234310,-2190.82242242,0.00041004,30]
[314634166,1708480234346,-17.73810868,0.00041004,30]
[314634167,1708480234377,-9441.43253784,0.00041004,30]
[314634168,1708480234389,-370.79936935,0.00041004,30]
[314634169,1708480234509,-712.31631995,0.00041004,30]
[314634170,1708480234518,-1727.585942,0.00041004,30]
[314634171,1708480234529,-1000.0,0.00041004,2]
[314634172,1708480234539,-150.0,0.00041004,30]
[314634173,1708480234548,-251.67798517,0.00043002,4]
[314634174,1708480234561,-424.4,0.00043015,10]
[314634175,1708480234571,-573.27135226,0.00043019,4]
[314634176,1708480234581,-6193.40291123,0.00043025,2]
[314634177,1708480234591,-2108.66954416,0.00043026,11]
[314634178,1708480234601,-5794.78110305,0.00043026,10]
[314634179,1708480234614,-150616.06395482,0.00043026,10]
[314634180,1708480234626,-562.34159793,0.00043026,10]
[314634181,1708480234667,-142978.0615838,0.00043026,10]
[314634182,1708480234680,-1102.62948,0.00043026,10]
[314634183,1708480234693,-3099.22376,0.00043026,10]
[314634184,1708480234706,-298.82,0.00043026,10]
[314634185,1708480234718,-695.67617998,0.00043026,10]
[314634188,1708480237941,-297.60793773,0.00043025,2]
[314634189,1708480238074,-202.39206227,0.00043025,2]
[314634190,1708480238084,-500.0,0.00043025,2]
[314634191,1708480238093,-500.0,0.00043025,2]
[314634192,1708480238103,-3415.13002742,0.00043026,10]
[314634193,1708480238113,-154.18449204,0.00043026,18]
[314634194,1708480238122,-209.66969578,0.00043026,2]
[314634195,1708480238133,-1000.0,0.0004303,4]
[314634196,1708480238143,-8781.29346084,0.00043033,2]
[314634197,1708480238155,-887.00743007,0.00043033,2]
[314634198,1708480238167,-2441.48475069,0.00043033,2]
[314634199,1708480238212,334.41,0.00042214,2]
[314634200,1708480238267,-276.08104344,0.00043033,2]
[314634203,1708480238352,-15998.68302051,0.00043033,2]
[314634205,1708480238361,-1776.39544441,0.00043035,5]
[314634207,1708480238371,-499.99,0.00043035,2]
[314634209,1708480238380,-500.0,0.00043035,2]
[314634211,1708480238393,-500.0,0.00043035,2]
[314634213,1708480238402,-500.0,0.00043035,2]
[314634215,1708480238413,-500.0,0.00043035,2]
[314634216,1708480238422,-500.0,0.00043035,2]
[314634217,1708480238432,-500.0,0.00043035,2]
[314634218,1708480238441,-500.0,0.00043035,2]
[314634219,1708480238450,-500.0,0.00043035,2]
[314634220,1708480238461,-500.0,0.00043035,2]
[314634221,1708480238470,-500.0,0.00043035,2]
[314634222,1708480238480,-400.0,0.00043035,2]
[314634223,1708480238489,-500.0,0.00043035,2]
[314634224,1708480238499,-500.0,0.00043035,2]
[314634225,1708480238508,-500.0,0.00043035,2]
[314634226,1708480238517,-500.0,0.00043035,2]
[314634227,1708480238526,-500.0,0.00043035,2]
[314634228,1708480238536,-500.0,0.00043035,2]
[314634229,1708480238545,-500.0,0.00043035,2]
[314634230,1708480238555,-500.0,0.00043035,2]
[314634231,1708480238564,-500.0,0.00043035,2]
[314634232,1708480238573,-500.0,0.00043035,2]
[314634233,1708480238583,-500.0,0.00043035,2]
[314634234,1708480238592,-500.0,0.00043035,2]
[314634235,1708480238601,-500.0,0.00043035,2]
[314634236,1708480238610,-500.0,0.00043035,2]
[314634237,1708480238620,-500.0,0.00043035,2]
[314634238,1708480238629,-500.0,0.00043035,2]
[314634239,1708480238638,-500.0,0.00043035,2]
[314634240,1708480238647,-500.0,0.00043035,2]
[314634241,1708480238656,-500.0,0.00043035,2]
[314634242,1708480238666,-500.0,0.00043035,2]
[314634243,1708480238675,-500.0,0.00043035,2]
[314634244,1708480238684,-500.0,0.00043035,2]
[314634245,1708480238694,-500.0,0.00043035,2]
[314634246,1708480238703,-150.0,0.00043035,2]
[314634247,1708480238712,-500.0,0.00043035,2]
[314634248,1708480238721,-500.0,0.00043035,2]
[314634249,1708480238730,-500.0,0.00043035,2]
[314634250,1708480238739,-500.0,0.00043035,2]
[314634251,1708480238749,-500.0,0.00043035,2]
[314634252,1708480238758,-500.0,0.00043035,2]
[314634253,1708480238767,-500.0,0.00043035,2]
[314634254,1708480238776,-500.0,0.00043035,2]
[314634255,1708480238786,-500.0,0.00043035,2]
[314634256,1708480238796,-500.0,0.00043035,2]
[314634257,1708480238805,-500.0,0.00043035,2]
[314634258,1708480238814,-500.0,0.00043035,2]
[314634259,1708480238824,-500.0,0.00043035,2]
[314634260,1708480238833,-500.0,0.00043035,2]
[314634261,1708480238842,-500.0,0.00043035,2]
[314634262,1708480238851,-500.0,0.00043035,2]
[314634263,1708480238861,-500.0,0.00043035,2]
[314634264,1708480238870,-500.0,0.00043035,2]
[314634265,1708480238880,-500.0,0.00043035,2]
[314634266,1708480238889,-170.48338072,0.00043035,2]
[314634268,1708480240655,-329.51661928,0.00043035,2]
[314634269,1708480240665,-190.49338072,0.00043035,2]
[314634270,1708480241416,-309.50661928,0.00043035,2]
[314634271,1708480241426,-500.0,0.00043035,2]
[314634272,1708480241436,-500.0,0.00043035,2]
[314634273,1708480241445,-500.0,0.00043035,2]
[314634274,1708480241454,-500.0,0.00043035,2]
[314634275,1708480241464,-500.0,0.00043035,2]
[314634276,1708480241473,-500.0,0.00043035,2]
[314634277,1708480241483,-500.0,0.00043035,2]
[314634278,1708480241493,-500.0,0.00043035,2]
[314634279,1708480241502,-500.0,0.00043035,2]
[314634280,1708480241512,-500.0,0.00043035,2]
[314634281,1708480241522,-500.0,0.00043035,2]
[314634283,1708480241531,-500.0,0.00043035,2]
[314634284,1708480241541,-500.0,0.00043035,2]
[314634286,1708480241550,-500.0,0.00043035,2]
[314634287,1708480241559,-500.0,0.00043035,2]
[314634288,1708480241568,-500.0,0.00043035,2]
[314634289,1708480241578,-500.0,0.00043035,2]
[314634290,1708480241587,-500.0,0.00043035,2]
[314634291,1708480241597,-500.0,0.00043035,2]
[314634292,1708480241607,-500.0,0.00043035,2]
[314634293,1708480241616,-500.0,0.00043035,2]
[314634294,1708480241626,-500.0,0.00043035,2]
[314634295,1708480241635,-500.0,0.00043035,2]
[314634296,1708480241645,-500.0,0.00043035,2]
[314634297,1708480241655,-500.0,0.00043035,2]
[314634298,1708480241664,-1631.15,0.00043036,2]
[314634299,1708480241673,-14850.6097,0.00043036,2]
[314634300,1708480241682,-178873.98576132,0.00043036,2]
[314634303,1708480243014,-8482.55998297,0.00043036,2]
[314634304,1708480243074,-712.6633968,0.00043036,2]
[314634305,1708480243088,-2059.4948,0.00043036,2]
[314634308,1708480246104,-1.35945959,0.00043036,2]
[314634309,1708480246162,-730.59205134,0.00043036,2]
[314634312,1708480251280,-1496.85000001,0.00043036,2]
[314634313,1708480251292,-8053.70794008,0.00043036,2]
[314634314,1708480251496,573.27135226,0.00040999,4]
[314634315,1708480252285,405.7,0.00042302,2]
[314634316,1708480256000,648.371852,0.00040982,4]
[314634317,1708480265148,300.0,0.00038,39]
[314634318,1708480266971,173.14,0.00042286,2]
[314634319,1708480267146,219.35130656,0.00038,39]
[314634320,1708480268876,2000.0,0.000408,2]
[314634321,1708480269446,573.27135226,0.00040999,4]
[314634322,1708480269924,656164.86360671,0.00023,2]
[314634323,1708480269946,1281.89573,0.00023,2]
[314634324,1708480269967,1468.64297396,0.00023,2]
[314634325,1708480269988,99335.751,0.00023,2]
[314634326,1708480270009,1410.451867,0.00023,2]
[314634327,1708480270034,13900.0,0.00023,2]
[314634328,1708480270063,39000.0,0.00023,2]
[314634329,1708480270089,39000.0,0.00023,2]
[314634330,1708480270115,39000.0,0.00023,2]
[314634331,1708480270139,130000.0,0.00023,2]
[314634332,1708480270169,1581564.24732307,0.00023,2]
[314634333,1708480281414,8819.67854119,9e-05,2]
[314634334,1708480286965,481.42652895,0.00018,2]
[314634335,1708480292776,1668.22783348,0.0001,2]
[314634336,1708480295402,913.23799935,0.00024,2]
[314634337,1708480297673,1377.45009982,0.00011,2]
[314634338,1708480309557,287.31119586,0.0002,2]
[314634339,1708480314242,2066.27282225,0.00021,4]
[314634340,1708480315784,24869.61395144,6.94e-05,2]
[314634342,1708480357973,222.0008811,0.0002211,2]
[314634343,1708480376589,437.79865063,0.0002,2]
[314634344,1708480385473,31222.46984725,0.000225,2]
[314634345,1708480396467,3277.10868258,0.0001305,2]
[314634346,1708480420336,501.19172894,0.0002313,2]
[314634347,1708480422226,3688.88905644,0.0002,2]
[314634349,1708480428845,6160.80721672,0.000142,2]
[314634350,1708480429511,6653.0,0.0002,2]
[314634351,1708480431857,1637.9320235,0.000181,2]
[314634352,1708480433578,337894.23844302,0.00023,2]
[314634353,1708480449139,200.0,0.0001634,2]
[314634354,1708480450845,10399.88819391,0.0002,2]
[314634356,1708480460209,1264.05310305,0.0002,2]
[314634357,1708480464473,469.06101388,0.00018,2]
[314634358,1708480466960,644.11455392,0.000137,2]
[314634359,1708480467066,421.95349987,0.00022,2]
[314634360,1708480470734,5113.28761515,0.000232,2]
[314634365,1708480825822,-515.59061373,0.00024982,2]
[314634366,1708480825843,-422.25216861,0.00024983,2]
[314634367,1708480825863,-615.26004281,0.00024984,2]
[314634368,1708480825884,-259.07300225,0.00024985,2]
[314634369,1708480825904,-340.53962014,0.00025,2]
[314634370,1708480825924,-373.34296816,0.00025,2]
[314634379,1708480989774,10000.0,0.00035,30]
[314634380,1708481008238,10000.0,0.00035,30]
[314634381,1708481096111,-373.34296816,0.00026291,2]
[314634382,1708481096133,-615.26004281,0.00026292,2]
[314634383,1708481096154,-515.59061373,0.00026293,2]
[314634384,1708481096176,-4337.41276001,0.000263,2]
[314634385,1708481228139,-165.76328308,0.000271,2]
[314634386,1708481228160,-2018.71936185,0.000272,2]
[314634388,1708481275892,-9938.48692552,0.000272,2]
[314634391,1708481345093,-387.18782692,0.00027984,2]
[314634392,1708481345115,-7554.28438204,0.0002799,2]
[314634393,1708481345136,-205.02095675,0.00027995,2]